bitfinex/quotes_SOLUSD_20250617
["timestamp","ask_amount","ask_price","bid_price","bid_amount"]
[1750142025270,46.87126519,153.58,153.53,26.77391431]
[1750142025649,7.83994231,153.57,153.53,18.933972]
[1750142025951,34.57994231,153.56,153.52,9.36864231]
[1750142026150,26.74,153.56,153.52,1.5287]
[1750142026471,26.74,153.56,153.52,9.36864231]
[1750142026654,6.51253663,153.55,153.52,9.36864231]
[1750142027283,33.25219816,153.56,153.53,7.83994231]
[1750142028941,33.25219816,153.56,153.52,9.36864231]
[1750142029183,41.09214047,153.56,153.51,26.48959117]
[1750142029988,41.09214047,153.56,153.52,7.83994231]
[1750142030374,33.25219816,153.56,153.52,7.83994231]
[1750142031552,6.51128892,153.58,153.53,7.83994231]
[1750142031749,5.78,153.6,153.56,7.83994231]
[1750142031980,26.72,153.59,153.56,7.83994231]
[1750142032471,26.72,153.59,153.56,18.64964886]
[1750142033292,33.23100238,153.59,153.56,18.64964886]
[1750142033506,26.72,153.58,153.56,7.83994231]
[1750142034008,26.72,153.58,153.55,26.48959117]
[1750142035197,12.29051847,153.6,153.55,26.48959117]
[1750142035375,26.72,153.59,153.56,7.83994231]
[1750142036423,26.72,153.59,153.57,7.83994231]
[1750142036581,32.5,153.6,153.57,7.83994231]
[1750142036774,32.5,153.6,153.58,7.83994231]
[1750142037179,5.78,153.6,153.58,7.83994231]
[1750142037495,5.78,153.6,153.59,26.77391431]
[1750142037701,26.72,153.62,153.6,18.64964886]
[1750142037881,26.72,153.62,153.6,26.48959117]
[1750142038193,26.72,153.64,153.62,18.64964886]
[1750142038393,26.72,153.64,153.62,26.48959117]
[1750142038992,5.78,153.65,153.63,7.83994231]
[1750142039398,32.5,153.65,153.62,7.83994231]
[1750142039604,46.84834828,153.65,153.6,7.83994231]
[1750142039784,7.83994231,153.64,153.6,7.83994231]
[1750142039985,7.83994231,153.63,153.59,26.48959117]
[1750142040404,26.72,153.62,153.6,7.83994231]
[1750142040797,34.55994231,153.62,153.59,18.64964886]
[1750142041578,41.06969049,153.62,153.59,18.64964886]
[1750142041782,26.72,153.62,153.59,18.64964886]
[1750142041998,26.72,153.62,153.59,26.48959117]
[1750142043809,26.72,153.62,153.6,7.83994231]
[1750142044028,5.78,153.65,153.61,8.12426545]
[1750142044191,32.52,153.65,153.62,7.83994231]
[1750142045006,32.52,153.65,153.62,5.22126016]
[1750142045386,39.02833732,153.65,153.62,5.22126016]
[1750142045587,39.02833732,153.65,153.6,18.64964886]
[1750142045818,5.22126016,153.64,153.59,23.87090902]
[1750142045983,5.78,153.65,153.63,5.22126016]
[1750142046302,5.78,153.65,153.64,5.22126016]
[1750142046499,5.78,153.65,153.62,0.28432314]
[1750142046698,5.78,153.65,153.62,5.5055833]
[1750142046882,5.78,153.65,153.62,0.28432314]
[1750142047092,5.78,153.65,153.62,5.5055833]
[1750142047915,5.78,153.65,153.63,5.22126016]
[1750142051017,5.78,153.65,153.64,5.5055833]
[1750142051220,16.2629218,153.73,153.64,5.5055833]
[1750142051221,5.78,153.7,153.66,0.28432314]
[1750142051511,5.78,153.7,153.69,23.87090902]
[1750142051708,5.78,153.7,153.69,24.15523216]
[1750142052890,5.78,153.7,153.69,30.66183636]
[1750142053088,5.78,153.7,153.69,24.15523216]
[1750142054610,5.78,153.7,153.69,18.64964886]
[1750142054834,5.78,153.7,153.66,5.22126016]
[1750142054999,17.50748608,153.7,153.67,18.64964886]
[1750142055323,12.28622592,153.7,153.67,18.64964886]
[1750142055630,5.78,153.7,153.67,18.64964886]
[1750142055914,5.78,153.7,153.67,23.87090902]
[1750142056429,5.78,153.7,153.69,5.22126016]
[1750142059204,17.50747359,153.7,153.65,6.666]
[1750142059513,17.50747359,153.7,153.6,21.49664418]
[1750142059514,5.22126016,153.67,153.62,18.64964886]
[1750142059716,52.74,153.69,153.59,5.22126016]
[1750142059717,5.22126016,153.63,153.59,5.22126016]
[1750142059908,5.22126016,153.62,153.59,18.64964886]
[1750142060103,5.22126016,153.61,153.57,13.07126016]
[1750142060301,5.22126016,153.61,153.58,18.933972]
[1750142060509,5.22126016,153.62,153.58,24.15523216]
[1750142060703,5.22126016,153.62,153.58,18.933972]
[1750142060901,7.83640409,153.62,153.58,26.48605295]
[1750142061523,14.34623888,153.62,153.58,18.64964886]
[1750142061713,6.50983479,153.62,153.58,18.64964886]
[1750142061920,46.86564269,153.63,153.59,7.83640409]
[1750142062122,46.86564269,153.63,153.58,26.48605295]
[1750142063828,32.52,153.63,153.6,7.83640409]
[1750142064416,39.02914618,153.63,153.6,7.83640409]
[1750142064616,39.02914618,153.63,153.59,8.12072723]
[1750142065913,32.52,153.63,153.59,8.12072723]
[1750142066444,32.52,153.63,153.6,7.83640409]
[1750142067127,7.83640409,153.66,153.61,7.83640409]
[1750142067423,26.74,153.65,153.62,7.83640409]
[1750142067599,5.78,153.66,153.62,7.83640409]
[1750142067803,26.74,153.65,153.63,7.83640409]
[1750142068008,12.28807177,153.66,153.63,7.83640409]
[1750142068207,26.74,153.65,153.62,7.83640409]
[1750142068405,34.57640409,153.65,153.61,26.48605295]
[1750142069636,6.50843899,153.65,153.61,26.48605295]
[1750142069841,26.74,153.64,153.62,7.83640409]
[1750142070039,5.78,153.66,153.61,25.15959005]
[1750142070040,26.74,153.65,153.63,7.83640409]
[1750142070214,26.74,153.65,153.64,7.83640409]
[1750142070419,39.02789004,153.66,153.64,7.83640409]
[1750142070655,32.52,153.66,153.64,7.83640409]
[1750142070832,5.78,153.66,153.65,26.48605295]
[1750142071331,5.78,153.66,153.65,18.64964886]
[1750142071635,5.78,153.66,153.63,7.83640409]
[1750142071833,5.78,153.66,153.62,0.28432314]
[1750142072040,5.78,153.66,153.63,7.83640409]
[1750142073541,5.78,153.66,153.63,18.64964886]
[1750142073740,7.83640409,153.64,153.58,18.933972]
[1750142073967,7.83640409,153.64,153.61,18.933972]
[1750142074332,34.57640409,153.65,153.61,26.77037609]
[1750142075024,26.74,153.65,153.62,7.83640409]
[1750142075836,33.24839279,153.65,153.61,0.28432314]
[1750142076146,33.24839279,153.65,153.6,26.48605295]
[1750142076147,41.08479688,153.65,153.6,26.48605295]
[1750142076743,41.08479688,153.65,153.61,7.83640409]
[1750142077046,41.08479688,153.65,153.6,18.64964886]
[1750142077221,41.08479688,153.65,153.61,7.83640409]
[1750142077840,33.24839279,153.65,153.61,7.83640409]
[1750142078025,33.24839279,153.65,153.62,7.83640409]
[1750142080720,26.74,153.65,153.62,7.83640409]
[1750142080946,26.74,153.65,153.62,5.22126836]
[1750142081141,33.24830775,153.65,153.62,5.22126836]
[1750142083150,38.46957611,153.65,153.61,5.5055915]
[1750142083843,33.24830775,153.65,153.62,5.22126836]
[1750142088752,26.74,153.65,153.62,5.22126836]
[1750142089349,12.28803535,153.66,153.64,5.22126836]
[1750142089350,5.78,153.66,153.64,5.22126836]
[1750142089547,32.48,153.66,153.65,5.22126836]
[1750142089849,32.48,153.66,153.64,5.22126836]
[1750142094632,5.78,153.66,153.64,5.22126836]
[1750142094828,32.46,153.66,153.64,5.22126836]
[1750142096156,32.46,153.66,153.62,25.44350924]
[1750142096358,44.18923824,153.66,153.62,24.15524036]
[1750142096566,5.22126836,153.65,153.58,6.51126448]
[1750142096736,5.22126836,153.63,153.6,18.64964886]
[1750142096935,31.90126836,153.62,153.6,18.64964886]
[1750142097439,26.68,153.62,153.59,18.933972]
[1750142098740,38.41084961,153.62,153.59,18.64964886]
[1750142098950,5.22126836,153.61,153.58,18.79181043]
[1750142099152,26.68,153.6,153.58,18.79181043]
[1750142099749,26.68,153.6,153.59,5.22126836]
[1750142099946,26.68,153.6,153.58,24.01307879]
[1750142100437,26.68,153.6,153.56,5.22126836]
[1750142100635,31.90126836,153.6,153.56,18.64964886]
[1750142101470,26.68,153.6,153.56,23.87091722]
[1750142101669,33.19043234,153.6,153.57,5.22126836]
[1750142101867,33.19043234,153.6,153.56,5.22126836]
[1750142102250,38.4117007,153.6,153.55,18.64964886]
[1750142102450,38.4117007,153.6,153.55,23.87091722]
[1750142102664,26.68,153.6,153.58,5.22126836]
[1750142103136,26.68,153.6,153.59,5.22126836]
[1750142103340,26.68,153.6,153.58,5.22126836]
[1750142103550,26.68,153.6,153.55,6.51228766]
[1750142103551,26.68,153.6,153.57,5.22126836]
[1750142103947,33.19050507,153.6,153.57,5.22126836]
[1750142104369,33.19050507,153.6,153.58,5.22126836]
[1750142105672,33.19050507,153.6,153.57,5.22126836]
[1750142106344,33.19050507,153.6,153.56,5.22126836]
[1750142106742,5.22126836,153.58,153.53,8.2098]
[1750142106969,5.78,153.59,153.53,8.2098]
[1750142106970,31.90126836,153.57,153.53,13.43106836]
[1750142107542,6.51211252,153.56,153.53,13.43106836]
[1750142107743,26.68,153.55,153.54,5.22126836]
[1750142108265,26.68,153.55,153.53,13.43106836]
[1750142108646,26.68,153.55,153.45,7.7972]
[1750142108881,5.22126836,153.53,153.48,5.22126836]
[1750142109171,5.22126836,153.51,153.48,18.64964886]
[1750142109375,26.68,153.5,153.48,18.64964886]
[1750142109779,5.22126836,153.49,153.45,7.7972]
[1750142109957,5.22126836,153.47,153.43,5.22126836]
[1750142110154,26.7,153.46,153.44,18.933972]
[1750142110356,26.7,153.46,153.43,5.22126836]
[1750142110695,26.7,153.46,153.44,18.64964886]
[1750142111542,31.92126836,153.46,153.42,5.22126836]
[1750142111657,31.92126836,153.46,153.42,18.64964886]
[1750142112060,26.7,153.46,153.42,23.87091722]
[1750142112248,31.92126836,153.46,153.42,23.87091722]
[1750142112449,38.43779045,153.46,153.42,23.87091722]
[1750142112751,38.43779045,153.46,153.42,18.64964886]
[1750142112752,5.22126836,153.45,153.42,18.64964886]
[1750142112986,26.72,153.44,153.41,11.44706836]
[1750142115075,26.72,153.44,153.42,23.87091722]
[1750142115309,31.94126836,153.44,153.4,22.1442136]
[1750142115463,5.22126836,153.43,153.4,22.1442136]
[1750142115865,11.739066,153.43,153.4,22.1442136]
[1750142118490,5.22126836,153.42,153.4,22.1442136]
[1750142118802,26.7,153.41,153.4,22.1442136]
[1750142118959,11.73860162,153.44,153.4,22.1442136]
[1750142119165,32.46,153.43,153.4,22.1442136]
[1750142119366,32.46,153.43,153.41,5.22126836]
[1750142119782,32.46,153.43,153.4,27.36548196]
[1750142119976,32.46,153.43,153.41,5.22126836]
[1750142120180,5.76,153.45,153.41,18.64964886]
[1750142120398,26.7,153.44,153.42,5.22126836]
[1750142121277,26.7,153.44,153.41,23.87091722]
[1750142123187,26.7,153.43,153.41,23.87091722]
[1750142123388,26.7,153.43,153.41,5.22126836]
[1750142123702,26.7,153.43,153.42,5.22126836]
[1750142124275,12.2769212,153.45,153.42,5.22126836]
[1750142124491,26.72,153.44,153.42,5.22126836]
[1750142125285,26.74,153.43,153.42,5.22126836]
[1750142126884,26.74,153.43,153.41,5.22126836]
[1750142128602,26.74,153.43,153.4,27.36548196]
[1750142129181,26.74,153.43,153.4,22.1442136]
[1750142129182,38.47892097,153.43,153.4,22.1442136]
[1750142129599,5.22126836,153.41,153.4,22.1442136]
[1750142130501,11.73974825,153.41,153.4,22.1442136]
[1750142131500,6.51847989,153.41,153.4,22.1442136]
[1750142131805,11.73974825,153.41,153.4,22.1442136]
[1750142134225,37.73974825,153.41,153.4,22.1442136]
[1750142135607,38.43974825,153.41,153.4,22.1442136]
[1750142137516,64.99847989,153.41,153.4,22.1442136]
[1750142137915,70.21974825,153.41,153.4,22.1442136]
[1750142140321,5.76,153.41,153.4,22.1442136]
[1750142140620,18.64964886,153.47,153.4,22.1442136]
[1750142140621,5.22126836,153.48,153.4,52.81835878]
[1750142140917,5.76,153.46,153.43,5.22126836]
[1750142141106,26.74,153.45,153.43,5.22126836]
[1750142141497,26.74,153.45,153.42,5.22126836]
[1750142141703,5.76,153.46,153.41,18.64964886]
[1750142141904,5.76,153.46,153.42,5.22126836]
[1750142142099,5.76,153.46,153.45,5.22126836]
[1750142142321,5.76,153.46,153.43,18.933972]
[1750142142527,26.74,153.45,153.42,6.81616836]
[1750142142832,26.74,153.45,153.41,5.22126836]
[1750142143211,26.74,153.45,153.42,5.22126836]
[1750142143525,26.74,153.45,153.43,5.22126836]
[1750142144023,33.25687415,153.45,153.43,5.22126836]
[1750142144530,33.25687415,153.45,153.41,18.64964886]
[1750142144708,33.25687415,153.45,153.43,5.22126836]
[1750142145111,33.25687415,153.45,153.42,5.22126836]
[1750142145618,33.25687415,153.45,153.4,22.1442136]
[1750142145828,38.47814251,153.45,153.41,5.22126836]
[1750142146645,26.0,153.43,153.4,22.1442136]
[1750142146938,5.22126836,153.41,153.4,22.1442136]
[1750142147142,38.49974825,153.41,153.4,22.1442136]
[1750142147309,33.27847989,153.41,153.4,22.1442136]
[1750142147510,26.76,153.41,153.4,22.1442136]
[1750142147711,33.27847989,153.41,153.4,22.1442136]
[1750142147917,26.76,153.41,153.4,22.1442136]
[1750142148332,32.51731058,153.44,153.4,27.36548196]
[1750142148532,26.78,153.43,153.41,5.22126836]
[1750142148912,6.51685587,153.45,153.42,5.22126836]
[1750142149142,26.78,153.44,153.42,5.22126836]
[1750142149978,5.22126836,153.43,153.4,22.1442136]
[1750142150250,5.22126836,153.41,153.4,22.1442136]
[1750142150637,5.22126836,153.42,153.4,22.1442136]
[1750142150858,32.6,153.41,153.4,22.1442136]
[1750142151349,39.11847989,153.41,153.4,22.1442136]
[1750142152141,6.51775948,153.43,153.4,27.36548196]
[1750142152331,26.8,153.42,153.41,5.22126836]
[1750142154255,32.6,153.43,153.41,5.22126836]
[1750142154826,32.6,153.43,153.42,5.22126836]
[1750142155545,32.58,153.43,153.42,5.22126836]
[1750142158758,5.8,153.43,153.42,5.22126836]
[1750142158958,5.8,153.43,153.42,30.67329537]
[1750142159158,5.8,153.48,153.44,0.28432314]
[1750142159362,5.8,153.48,153.47,5.22126836]
[1750142159539,39.0955069,153.48,153.46,5.22126836]
[1750142159858,32.58,153.48,153.46,5.22126836]
[1750142160158,32.58,153.48,153.46,25.52232636]
[1750142160370,39.09560333,153.48,153.46,25.52232636]
[1750142160937,32.58,153.48,153.46,25.52232636]
[1750142163276,32.58,153.48,153.47,5.22126836]
[1750142163950,32.58,153.48,153.46,25.52232636]
[1750142164179,26.76,153.47,153.46,20.301058]
[1750142164510,31.98126836,153.47,153.46,20.301058]
[1750142165294,38.49719981,153.47,153.46,20.301058]
[1750142165693,43.35966991,153.47,153.46,20.301058]
[1750142166188,38.49719981,153.47,153.46,20.301058]
[1750142167394,33.29593145,153.47,153.46,20.301058]
[1750142168195,11.02126836,153.48,153.46,20.301058]
[1750142168196,5.8,153.48,153.46,20.301058]
[1750142168507,26.78,153.47,153.46,25.52232636]
[1750142168885,5.8,153.48,153.46,25.52232636]
[1750142169088,26.78,153.47,153.46,20.301058]
[1750142169700,32.58,153.48,153.46,25.52232636]
[1750142169907,32.58,153.48,153.47,5.22126836]
[1750142170206,32.58,153.48,153.46,25.52232636]
[1750142171212,32.58,153.48,153.46,20.301058]
[1750142171394,32.58,153.48,153.46,25.52232636]
[1750142171593,44.31681508,153.48,153.46,20.301058]
[1750142171906,5.22126836,153.47,153.46,20.301058]
[1750142173409,11.73719981,153.47,153.46,20.301058]
[1750142177820,6.51593145,153.47,153.46,20.301058]
[1750142178001,11.73719981,153.47,153.46,20.301058]
[1750142179226,6.51593145,153.47,153.46,20.301058]
[1750142179419,38.55719981,153.47,153.46,20.301058]
[1750142181521,43.42136123,153.47,153.46,20.301058]
[1750142183620,38.55719981,153.47,153.46,20.301058]
[1750142184213,6.51593145,153.47,153.46,20.301058]
[1750142184529,38.53719981,153.47,153.46,20.301058]
[1750142184733,49.39719981,153.47,153.46,20.301058]
[1750142185413,54.26809445,153.47,153.46,20.301058]
[1750142185822,43.40809445,153.47,153.46,20.301058]
[1750142186952,26.0,153.44,153.4,1.8431556]
[1750142187243,5.22126836,153.41,153.4,1.8431556]
[1750142187408,37.84126836,153.41,153.4,1.8431556]
[1750142187609,32.62,153.41,153.4,1.8431556]
[1750142187936,37.84126836,153.41,153.4,1.8431556]
[1750142188143,63.84126836,153.41,153.4,1.8431556]
[1750142188712,68.71170446,153.41,153.4,1.8431556]
[1750142189147,75.23018435,153.41,153.4,1.8431556]
[1750142190039,70.35974825,153.41,153.4,1.8431556]
[1750142190413,37.73974825,153.41,153.4,1.8431556]
[1750142190612,70.37974825,153.41,153.4,1.8431556]
[1750142191723,81.23974825,153.41,153.4,1.8431556]
[1750142192036,70.37974825,153.41,153.4,1.8431556]
[1750142194323,5.82,153.41,153.4,1.8431556]
[1750142194526,32.62,153.41,153.4,1.8431556]
[1750142194756,44.35974825,153.41,153.4,1.8431556]
[1750142195426,44.35974825,153.41,153.37,5.22126836]
[1750142195427,45.94850201,153.41,153.37,5.22126836]
[1750142195615,5.22126836,153.4,153.36,5.22126836]
[1750142195811,26.82,153.39,153.36,5.22126836]
[1750142196331,33.33941434,153.39,153.36,5.22126836]
[1750142197550,5.22126836,153.38,153.34,5.22126836]
[1750142197731,26.82,153.37,153.34,5.22126836]
[1750142198055,26.82,153.37,153.35,5.22126836]
[1750142199159,26.82,153.37,153.33,26.61714886]
[1750142199452,33.34039461,153.37,153.33,31.83841722]
[1750142199629,38.56166297,153.37,153.33,31.83841722]
[1750142200441,38.56166297,153.37,153.33,13.18876836]
[1750142201517,5.22126836,153.35,153.31,5.22126836]
[1750142201718,32.62,153.34,153.31,5.22126836]
[1750142202121,37.84126836,153.34,153.3,5.22126836]
[1750142202425,32.62,153.34,153.32,5.22126836]
[1750142205833,32.62,153.34,153.31,23.87091722]
[1750142206169,32.62,153.34,153.32,5.22126836]
[1750142206330,39.14153239,153.34,153.32,5.22126836]
[1750142206536,39.14153239,153.34,153.31,5.22126836]
[1750142206933,5.22126836,153.33,153.29,8.2492]
[1750142207154,5.22126836,153.31,153.26,30.22126836]
[1750142207348,32.02126836,153.3,153.26,30.22126836]
[1750142207657,32.02126836,153.3,153.26,25.0]
[1750142207843,6.52358275,153.29,153.26,25.0]
[1750142208161,6.52188091,153.33,153.27,18.64964886]
[1750142208475,26.8,153.32,153.31,5.22126836]
[1750142210033,26.8,153.32,153.31,11.74400008]
[1750142210333,26.82,153.33,153.31,5.22126836]
[1750142210532,26.82,153.33,153.32,5.22126836]
[1750142210533,29.99750752,153.33,153.32,5.22126836]
[1750142211171,3.17750752,153.33,153.32,5.22126836]
[1750142211364,29.99750752,153.33,153.32,5.22126836]
[1750142211672,3.17750752,153.33,153.32,11.74357464]
[1750142211832,3.17750752,153.33,153.32,30.3932235]
[1750142212255,3.17750752,153.33,153.32,30.67754664]
[1750142214162,3.17750752,153.33,153.32,5.22126836]
[1750142215962,3.17750752,153.33,153.32,30.3932235]
[1750142216192,3.17750752,153.33,153.32,30.67754664]
[1750142216364,8.51605812,153.36,153.35,44.64964886]
[1750142216716,26.84,153.43,153.37,0.28432314]
[1750142216860,26.84,153.43,153.41,5.22126836]
[1750142217486,5.22126836,153.42,153.36,18.64964886]
[1750142217686,26.84,153.43,153.36,18.64964886]
[1750142217687,5.22126836,153.41,153.37,5.22126836]
[1750142217890,33.39890482,153.4,153.36,5.22126836]
[1750142218262,33.39890482,153.4,153.35,7.7957]
[1750142218263,5.22126836,153.37,153.31,7.7355]
[1750142218482,26.88,153.36,153.32,5.22126836]
[1750142218988,26.88,153.36,153.32,7.86332124]
[1750142219483,33.40067096,153.36,153.33,7.86332124]
[1750142219688,33.40067096,153.36,153.32,7.86332124]
[1750142220588,7.86332124,153.35,153.31,15.59882124]
[1750142220981,7.86332124,153.33,153.27,8.2014]
[1750142221194,26.9,153.32,153.29,7.86332124]
[1750142221482,33.42234067,153.32,153.29,7.86332124]
[1750142221672,41.28566191,153.32,153.28,18.64964886]
[1750142221876,26.9,153.32,153.29,7.86332124]
[1750142222493,33.42234697,153.32,153.29,7.86332124]
[1750142223089,26.9,153.32,153.28,18.64964886]
[1750142223270,26.9,153.32,153.3,7.86332124]
[1750142223464,26.9,153.32,153.29,7.86332124]
[1750142223670,33.42235201,153.32,153.29,7.86332124]
[1750142223969,7.86332124,153.31,153.27,16.06472124]
[1750142224699,41.28567325,153.32,153.27,16.06472124]
[1750142225076,7.86332124,153.31,153.26,32.86332124]
[1750142225284,33.42235201,153.32,153.26,25.0]
[1750142225285,13.68332124,153.3,153.26,25.0]
[1750142225485,26.88,153.29,153.26,25.0]
[1750142225677,26.88,153.29,153.26,32.86332124]
[1750142229203,26.88,153.29,153.27,7.86332124]
[1750142229495,26.88,153.29,153.28,7.86332124]
[1750142229887,26.88,153.29,153.27,26.5129701]
[1750142231300,26.86,153.29,153.27,26.5129701]
[1750142231870,26.86,153.29,153.26,32.86332124]
[1750142232106,26.86,153.29,153.27,7.86332124]
[1750142234275,26.86,153.29,153.26,25.0]
[1750142234605,26.86,153.29,153.26,32.86332124]
[1750142235178,33.38369348,153.29,153.26,32.86332124]
[1750142235475,41.24701472,153.29,153.26,25.0]
[1750142235881,33.38369348,153.29,153.26,25.0]
[1750142237503,26.86,153.29,153.27,7.86332124]
[1750142238102,26.86,153.29,153.26,32.86332124]
[1750142239006,33.38367059,153.29,153.26,32.86332124]
[1750142239258,26.86,153.29,153.26,32.86332124]
[1750142239418,5.82,153.3,153.28,7.86332124]
[1750142239613,5.82,153.3,153.29,7.86332124]
[1750142239785,32.64,153.3,153.29,7.86332124]
[1750142240680,5.82,153.3,153.29,26.5129701]
[1750142240901,1.5778,153.38,153.3,18.64964886]
[1750142240902,5.8,153.35,153.3,18.64964886]
[1750142241076,26.82,153.34,153.33,5.24259299]
[1750142241283,26.82,153.34,153.32,5.24259299]
[1750142242007,33.34148657,153.34,153.31,5.24259299]
[1750142242205,33.34148657,153.34,153.3,13.33189299]
[1750142242428,38.58407956,153.34,153.29,5.24259299]
[1750142242583,38.58407956,153.34,153.3,5.24259299]
[1750142244223,38.58407956,153.34,153.29,5.24259299]
[1750142244393,5.24259299,153.33,153.29,5.24259299]
[1750142244595,26.82,153.32,153.3,5.24259299]
[1750142244783,26.82,153.32,153.29,5.24259299]
[1750142244989,36.48518598,153.3,153.26,25.0]
[1750142245228,10.0,153.23,153.15,4.35482642]
[1750142245394,26.0,153.16,153.15,4.35482642]
[1750142245594,58.30259299,153.16,153.15,3.503338]
[1750142245909,80.82640593,153.16,152.97,3.22903027]
[1750142246127,26.0,153.16,153.0,10.0]
[1750142246285,26.0,153.16,152.96,7.6699]
[1750142246286,10.48518598,153.13,152.96,7.6699]
[1750142246487,26.0,153.12,153.0,5.24259299]
[1750142246789,7.89161382,153.09,152.98,10.0]
[1750142246996,27.5,153.09,153.03,7.89161382]
[1750142247225,27.5,153.09,152.98,10.0]
[1750142247390,6.14,153.11,153.07,7.89161382]
[1750142247711,6.14,153.11,153.08,7.89161382]
[1750142248095,6.14,153.11,153.06,0.28432314]
[1750142248295,14.03161382,153.11,153.06,7.89161382]
[1750142248599,6.14,153.11,153.08,7.89161382]
[1750142248814,6.14,153.11,153.1,7.89161382]
[1750142249011,28.47429702,153.13,153.11,0.28432314]
[1750142249514,28.47429702,153.13,153.12,8.17593696]
[1750142250210,28.47429702,153.13,153.12,33.35641131]
[1750142250818,27.52,153.19,153.13,18.933972]
[1750142251025,27.54,153.19,153.16,7.89161382]
[1750142251402,35.43161382,153.19,153.13,0.28432314]
[1750142251623,35.43161382,153.19,153.14,7.89161382]
[1750142251802,35.43161382,153.19,153.13,0.28432314]
[1750142252123,7.89161382,153.17,153.13,8.17593696]
[1750142252330,27.52,153.16,153.13,8.17593696]
[1750142252900,27.52,153.16,153.13,7.67593696]
[1750142253306,27.52,153.16,153.07,18.64964886]
[1750142253608,35.41161382,153.16,153.12,7.89161382]
[1750142254013,35.41161382,153.16,153.11,7.89161382]
[1750142254196,41.94078532,153.16,153.11,7.89161382]
[1750142254600,35.41161382,153.16,153.12,7.89161382]
[1750142254801,35.41161382,153.16,153.1,6.53167055]
[1750142254802,27.52,153.16,153.13,7.89161382]
[1750142255027,27.52,153.16,153.11,0.28432314]
[1750142257518,27.52,153.16,153.11,6.815381]
[1750142258528,41.94075292,153.16,153.12,7.89161382]
[1750142258734,27.52,153.16,153.13,7.89161382]
[1750142259433,27.52,153.16,153.12,7.89161382]
[1750142259732,27.52,153.16,153.13,7.89161382]
[1750142260923,34.0491511,153.16,153.12,7.89161382]
[1750142261335,41.94076492,153.16,153.12,7.89161382]
[1750142262540,41.94076492,153.16,153.09,6.53191746]
[1750142262541,6.52656311,153.22,153.11,0.28432314]
[1750142262730,6.14,153.2,153.11,0.28432314]
[1750142262930,32.14,153.2,153.11,0.28432314]
[1750142263132,32.14,153.2,153.16,7.89161382]
[1750142263528,32.14,153.2,153.11,0.28432314]
[1750142263529,32.14,153.2,153.17,7.89161382]
[1750142263739,38.66758915,153.2,153.16,7.89161382]
[1750142264042,38.66758915,153.2,153.17,7.89161382]
[1750142264334,32.14,153.2,153.17,7.89161382]
[1750142264724,27.52,153.19,153.17,7.89161382]
[1750142265812,38.6675121,153.2,153.17,7.89161382]
[1750142266015,27.5,153.19,153.18,7.89161382]
[1750142266933,6.14,153.2,153.18,7.89161382]
[1750142267132,33.64,153.2,153.15,8.1726]
[1750142267312,33.64,153.2,153.18,7.89161382]
[1750142268723,33.64,153.2,153.15,14.70201833]
[1750142268925,33.64,153.2,153.18,7.89161382]
[1750142269346,33.64,153.2,153.17,7.89161382]
[1750142270611,33.64,153.2,153.18,7.89161382]
[1750142271542,33.64,153.2,153.17,7.89161382]
[1750142272814,48.05906559,153.2,153.15,1.6087]
[1750142273012,48.05906559,153.2,153.16,7.89161382]
[1750142274944,40.16745177,153.2,153.16,7.89161382]
[1750142275327,7.89161382,153.19,153.15,7.89161382]
[1750142275640,7.89161382,153.17,153.13,7.89161382]
[1750142275842,27.42,153.16,153.13,7.89161382]
[1750142276030,27.42,153.16,153.14,7.89161382]
[1750142278830,27.42,153.16,153.14,5.25431495]
[1750142279425,27.42,153.16,153.11,14.17682841]
[1750142281451,6.14,153.2,153.16,0.28432314]
[1750142281623,27.38,153.19,153.16,0.28432314]
[1750142281825,27.38,153.19,153.18,5.25431495]
[1750142283550,33.5,153.2,153.18,5.25431495]
[1750142283846,33.5,153.2,153.19,5.25431495]
[1750142284545,33.5,153.2,153.16,6.81329286]
[1750142284752,6.14,153.2,153.19,5.25431495]
[1750142284934,33.5,153.2,153.19,7.87544836]
[1750142285434,33.5,153.2,153.14,0.28432314]
[1750142285635,33.5,153.2,153.19,7.87544836]
[1750142286936,38.3446839,153.2,153.19,7.87544836]
[1750142287920,33.48,153.2,153.19,7.87544836]
[1750142288120,6.14,153.2,153.19,7.87544836]
[1750142288325,33.48,153.2,153.19,7.87544836]